[Event "*** SCC Grand Prix: Titled Tuesday Blitz"]
[Site "Chess.com"]
[Date "2020.06.02"]
[Round "5"]
[White "atalz0"]
[Black "Gmedmundo"]
[Result "0-1"]
[WhiteElo "2318"]
[BlackElo "2491"]
[TimeControl "180+1"]
[EndTime "10:59:21 PDT"]
[Termination "Gmedmundo won on time"]

1. d4 {[%clk 0:03:00.9]} 1... Nf6 {[%clk 0:02:58.8]} 2. c4 {[%clk 0:03:00.6]}
2... e6 {[%clk 0:02:58.7]} 3. Nc3 {[%clk 0:03:00.2]} 3... Bb4 {[%clk 0:02:57.9]}
4. Qc2 {[%clk 0:03:00.1]} 4... O-O {[%clk 0:02:57.3]} 5. e4 {[%clk 0:02:59.1]}
5... d5 {[%clk 0:02:55.3]} 6. e5 {[%clk 0:02:59.4]} 6... Ne4 {[%clk 0:02:54.1]}
7. Bd3 {[%clk 0:03:00]} 7... c5 {[%clk 0:02:49.2]} 8. Nf3 {[%clk 0:02:59.6]}
8... cxd4 {[%clk 0:02:39.1]} 9. Nxd4 {[%clk 0:03:00.5]} 9... Nd7 {[%clk
0:02:26.2]} 10. Bxe4 {[%clk 0:03:00.2]} 10... dxe4 {[%clk 0:02:24.8]} 11. Qxe4
{[%clk 0:03:01.1]} 11... Bxc3+ {[%clk 0:02:06.8]} 12. bxc3 {[%clk 0:03:02]}
12... Qa5 {[%clk 0:02:05]} 13. O-O {[%clk 0:03:01.5]} 13... Qxe5 {[%clk
0:02:02.5]} 14. Qh4 {[%clk 0:02:58.9]} 14... Qf6 {[%clk 0:01:57.1]} 15. Bg5
{[%clk 0:02:53.6]} 15... Qg6 {[%clk 0:01:56]} 16. Be7 {[%clk 0:02:41.6]} 16...
Re8 {[%clk 0:01:53.1]} 17. Nb5 {[%clk 0:02:41.7]} 17... f6 {[%clk 0:01:42.8]}
18. Ba3 {[%clk 0:02:26]} 18... Ne5 {[%clk 0:01:41.5]} 19. Kh1 {[%clk 0:01:46.9]}
19... Bd7 {[%clk 0:01:39.7]} 20. Nc7 {[%clk 0:01:40.9]} 20... Bc6 {[%clk
0:01:38.1]} 21. f3 {[%clk 0:01:37.6]} 21... Rac8 {[%clk 0:01:23.5]} 22. Nxe8
{[%clk 0:01:37.1]} 22... Rxe8 {[%clk 0:01:22.5]} 23. Bd6 {[%clk 0:01:36.5]}
23... Nf7 {[%clk 0:01:17.6]} 24. c5 {[%clk 0:01:34.7]} 24... e5 {[%clk
0:01:11.9]} 25. Qc4 {[%clk 0:01:27.1]} 25... e4 {[%clk 0:01:08.7]} 26. Rae1
{[%clk 0:01:13.4]} 26... h6 {[%clk 0:01:05.9]} 27. Re3 {[%clk 0:01:06.7]} 27...
Kh7 {[%clk 0:01:03.5]} 28. fxe4 {[%clk 0:00:43.6]} 28... Rxe4 {[%clk 0:01:02.2]}
29. Rxe4 {[%clk 0:00:42.3]} 29... Bxe4 {[%clk 0:01:01.4]} 30. Rf2 {[%clk
0:00:33.6]} 30... Ng5 {[%clk 0:00:57.2]} 31. Bg3 {[%clk 0:00:12.8]} 31... Bd5
{[%clk 0:00:51]} 32. Qf1 {[%clk 0:00:11.3]} 32... Ne4 {[%clk 0:00:49.1]} 33. Rf3
{[%clk 0:00:09.6]} 33... Nd2 {[%clk 0:00:47.9]} 34. Qd3 {[%clk 0:00:08.8]} 34...
Nxf3 {[%clk 0:00:43.8]} 35. Qxg6+ {[%clk 0:00:07.3]} 35... Kxg6 {[%clk
0:00:42.9]} 36. gxf3 {[%clk 0:00:08.2]} 36... Bxf3+ {[%clk 0:00:42.3]} 37. Kg1
{[%clk 0:00:08.8]} 37... Kf5 {[%clk 0:00:42.2]} 38. a3 {[%clk 0:00:08.6]} 38...
Ke4 {[%clk 0:00:41]} 39. Kf2 {[%clk 0:00:08.7]} 39... g5 {[%clk 0:00:38.5]} 40.
Bd6 {[%clk 0:00:08.6]} 40... h5 {[%clk 0:00:36.2]} 41. Be7 {[%clk 0:00:08.5]}
41... Bd1 {[%clk 0:00:30]} 42. Bxf6 {[%clk 0:00:08.2]} 42... g4 {[%clk
0:00:29.8]} 43. Bd4 {[%clk 0:00:07.7]} 43... Kd3 {[%clk 0:00:28.2]} 44. Bf6
{[%clk 0:00:07.3]} 44... a5 {[%clk 0:00:26.7]} 45. Bd4 {[%clk 0:00:07.8]} 45...
a4 {[%clk 0:00:25.9]} 46. Kg3 {[%clk 0:00:08.4]} 46... Kc4 {[%clk 0:00:24.3]}
47. Kh4 {[%clk 0:00:08.5]} 47... Kb3 {[%clk 0:00:24]} 48. c6 {[%clk 0:00:06.8]}
48... bxc6 {[%clk 0:00:21.6]} 49. Bc5 {[%clk 0:00:06.5]} 49... Kxc3 {[%clk
0:00:21.2]} 50. Kg3 {[%clk 0:00:04.4]} 50... Kc4 {[%clk 0:00:20.3]} 51. Be7
{[%clk 0:00:03.9]} 51... c5 {[%clk 0:00:19.8]} 52. Kf4 {[%clk 0:00:03.2]} 52...
Kd4 {[%clk 0:00:19.2]} 53. Bf6+ {[%clk 0:00:03.1]} 53... Kd3 {[%clk 0:00:18.5]}
54. Kg5 {[%clk 0:00:01.1]} 54... c4 {[%clk 0:00:17.7]} 55. Kxh5 {[%clk
0:00:01.1]} 55... g3+ {[%clk 0:00:17]} 56. Kh4 {[%clk 0:00:01]} 56... gxh2
{[%clk 0:00:16.8]} 0-1

[Event "*** SCC Grand Prix: Titled Tuesday Blitz"]
[Site "Chess.com"]
[Date "2020.06.02"]
[Round "5"]
[White "jb2mix"]
[Black "mishanick"]
[Result "0-1"]
[WhiteElo "2709"]
[BlackElo "2956"]
[TimeControl "180+1"]
[EndTime "10:59:22 PDT"]
[Termination "mishanick won on time"]

1. e4 {[%clk 0:02:59.1]} 1... c5 {[%clk 0:03:00.2]} 2. c3 {[%clk 0:02:59.4]}
2... d5 {[%clk 0:02:59.6]} 3. exd5 {[%clk 0:03:00.3]} 3... Qxd5 {[%clk
0:03:00.4]} 4. d4 {[%clk 0:03:01.2]} 4... Nf6 {[%clk 0:03:00.3]} 5. Nf3 {[%clk
0:03:01.7]} 5... Bg4 {[%clk 0:03:00.7]} 6. Be2 {[%clk 0:03:01.6]} 6... e6 {[%clk
0:03:00.9]} 7. Na3 {[%clk 0:03:00.1]} 7... Nc6 {[%clk 0:02:58.2]} 8. Nb5 {[%clk
0:03:00.2]} 8... Rc8 {[%clk 0:02:58.2]} 9. h3 {[%clk 0:02:56]} 9... Bh5 {[%clk
0:02:57.4]} 10. Bf4 {[%clk 0:02:48.1]} 10... cxd4 {[%clk 0:02:57]} 11. Nc7+
{[%clk 0:02:47.4]} 11... Rxc7 {[%clk 0:02:56.6]} 12. Bxc7 {[%clk 0:02:48.3]}
12... dxc3 {[%clk 0:02:55.6]} 13. bxc3 {[%clk 0:02:44.5]} 13... Ba3 {[%clk
0:02:55]} 14. O-O {[%clk 0:02:30.5]} 14... O-O {[%clk 0:02:40.7]} 15. Rb1 {[%clk
0:02:29.2]} 15... Rc8 {[%clk 0:01:56.9]} 16. Rxb7 {[%clk 0:02:05.7]} 16... Nd4
{[%clk 0:01:29]} 17. Rb8 {[%clk 0:02:02.8]} 17... Nxe2+ {[%clk 0:01:10.3]} 18.
Qxe2 {[%clk 0:02:03.7]} 18... Rxb8 {[%clk 0:01:09]} 19. Bxb8 {[%clk 0:02:03.7]}
19... Qb7 {[%clk 0:01:04.6]} 20. Be5 {[%clk 0:01:32.7]} 20... Nd7 {[%clk
0:01:02.9]} 21. Bg3 {[%clk 0:01:27.4]} 21... Bc5 {[%clk 0:00:57.4]} 22. Rd1
{[%clk 0:01:22.2]} 22... h6 {[%clk 0:00:56.2]} 23. Qd3 {[%clk 0:01:20.5]} 23...
Nf6 {[%clk 0:00:51.2]} 24. Rb1 {[%clk 0:01:15.7]} 24... Bb6 {[%clk 0:00:46.5]}
25. Ne5 {[%clk 0:01:10.9]} 25... Ne4 {[%clk 0:00:42]} 26. Qd7 {[%clk 0:00:46]}
26... Bxf2+ {[%clk 0:00:30.8]} 27. Bxf2 {[%clk 0:00:28]} 27... Qxb1+ {[%clk
0:00:30.8]} 28. Kh2 {[%clk 0:00:28.6]} 28... Nxf2 {[%clk 0:00:31.1]} 29. Qd8+
{[%clk 0:00:14.4]} 29... Kh7 {[%clk 0:00:30.4]} 30. Nd7 {[%clk 0:00:15.3]} 30...
Qh1+ {[%clk 0:00:18]} 31. Kg3 {[%clk 0:00:14.9]} 31... Ne4+ {[%clk 0:00:18.5]}
32. Kf4 {[%clk 0:00:15.3]} 32... g5+ {[%clk 0:00:16.4]} 33. Kxe4 {[%clk
0:00:12.7]} 33... Qxg2+ {[%clk 0:00:15.8]} 34. Ke5 {[%clk 0:00:13.2]} 34... Qg3+
{[%clk 0:00:13.2]} 35. Kf6 {[%clk 0:00:12.1]} 35... Qxc3+ {[%clk 0:00:13.7]} 36.
Ke7 {[%clk 0:00:10.2]} 36... Qb4+ {[%clk 0:00:13.3]} 37. Kf6 {[%clk 0:00:09.2]}
37... Qf4+ {[%clk 0:00:11.4]} 38. Ke7 {[%clk 0:00:09.6]} 38... Qb4+ {[%clk
0:00:10.5]} 39. Kf6 {[%clk 0:00:09.7]} 39... Qb2+ {[%clk 0:00:10.7]} 40. Ke7
{[%clk 0:00:09.7]} 40... Kg6 {[%clk 0:00:10.3]} 41. Nf8+ {[%clk 0:00:09.5]}
41... Kg7 {[%clk 0:00:10.1]} 42. Nxe6+ {[%clk 0:00:07.8]} 42... fxe6 {[%clk
0:00:07.8]} 43. Qf8+ {[%clk 0:00:08.1]} 43... Kh7 {[%clk 0:00:07.2]} 44. Kxe6
{[%clk 0:00:03.2]} 44... Qg7 {[%clk 0:00:06.9]} 45. Qf2 {[%clk 0:00:02.7]} 45...
Bg6 {[%clk 0:00:07]} 46. Kd6 {[%clk 0:00:02.4]} 46... h5 {[%clk 0:00:07.2]} 47.
a4 {[%clk 0:00:01.9]} 47... Qf7 {[%clk 0:00:06.8]} 0-1

[Event "*** SCC Grand Prix: Titled Tuesday Blitz"]
[Site "Chess.com"]
[Date "2020.06.02"]
[Round "5"]
[White "stoleriu"]
[Black "Matibar"]
[Result "0-1"]
[WhiteElo "2535"]
[BlackElo "2699"]
[TimeControl "180+1"]
[EndTime "10:59:22 PDT"]
[Termination "Matibar won by resignation"]

1. e4 {[%clk 0:03:00.9]} 1... g6 {[%clk 0:02:54.9]} 2. d4 {[%clk 0:03:00.8]}
2... Bg7 {[%clk 0:02:54.5]} 3. Nc3 {[%clk 0:03:01.3]} 3... c6 {[%clk 0:02:51.8]}
4. Be3 {[%clk 0:02:59.6]} 4... b5 {[%clk 0:02:47.5]} 5. Bd3 {[%clk 0:02:56.7]}
5... d6 {[%clk 0:02:42.7]} 6. Nce2 {[%clk 0:02:55.1]} 6... Bb7 {[%clk
0:02:37.9]} 7. h4 {[%clk 0:02:53.9]} 7... h5 {[%clk 0:02:34.5]} 8. Nh3 {[%clk
0:02:47.7]} 8... a6 {[%clk 0:02:30.5]} 9. c3 {[%clk 0:02:46.3]} 9... Nd7 {[%clk
0:02:29.9]} 10. Ng5 {[%clk 0:02:44.3]} 10... c5 {[%clk 0:02:29.1]} 11. Qd2
{[%clk 0:02:43.4]} 11... Ngf6 {[%clk 0:02:26.9]} 12. f3 {[%clk 0:02:43.1]} 12...
e5 {[%clk 0:02:23.3]} 13. O-O {[%clk 0:02:38.4]} 13... O-O {[%clk 0:02:20.8]}
14. Rad1 {[%clk 0:02:36.4]} 14... Qe7 {[%clk 0:02:19.8]} 15. Bb1 {[%clk
0:02:34.7]} 15... Rad8 {[%clk 0:02:15.4]} 16. b4 {[%clk 0:02:18.1]} 16... Nb6
{[%clk 0:01:21.7]} 17. dxe5 {[%clk 0:02:04.3]} 17... dxe5 {[%clk 0:01:21.5]} 18.
Bxc5 {[%clk 0:01:55.2]} 18... Rxd2 {[%clk 0:01:20.8]} 19. Bxe7 {[%clk
0:01:54.4]} 19... Rxe2 {[%clk 0:01:20.9]} 20. Bxf8 {[%clk 0:01:31.3]} 20... Bxf8
{[%clk 0:01:20]} 21. Rd8 {[%clk 0:01:29.7]} 21... Nc4 {[%clk 0:01:09.8]} 22. Bd3
{[%clk 0:01:22]} 22... Rd2 {[%clk 0:01:09.1]} 23. Nxf7 {[%clk 0:01:08.3]} 23...
Rxd3 {[%clk 0:01:08.1]} 24. Rxd3 {[%clk 0:01:05.7]} 24... Kxf7 {[%clk
0:01:08.2]} 25. Kf2 {[%clk 0:00:58.1]} 25... Be7 {[%clk 0:01:07.1]} 26. Ra1
{[%clk 0:00:54.2]} 26... Bc6 {[%clk 0:01:06.6]} 27. Kg3 {[%clk 0:00:49.2]} 27...
Ke6 {[%clk 0:01:05.4]} 28. Kf2 {[%clk 0:00:49]} 28... Nd7 {[%clk 0:01:05]} 29.
Kg3 {[%clk 0:00:48.9]} 29... Ndb6 {[%clk 0:01:05.1]} 30. Kh3 {[%clk 0:00:47.9]}
30... Nb2 {[%clk 0:01:03.1]} 31. Rd2 {[%clk 0:00:43.5]} 31... N6c4 {[%clk
0:01:03.1]} 32. Rc2 {[%clk 0:00:37.8]} 32... Nd3 {[%clk 0:01:03.1]} 33. g3
{[%clk 0:00:38.1]} 33... Ndb2 {[%clk 0:00:57.9]} 34. Rg1 {[%clk 0:00:33.1]}
34... Kf7 {[%clk 0:00:56.1]} 35. Re1 {[%clk 0:00:24.3]} 35... Bd7+ {[%clk
0:00:55.7]} 36. Kg2 {[%clk 0:00:20.5]} 36... Bd8 {[%clk 0:00:56.2]} 37. Ree2
{[%clk 0:00:18.8]} 37... Nd1 {[%clk 0:00:44.5]} 38. Rcd2 {[%clk 0:00:13.8]}
38... Nxd2 {[%clk 0:00:36.4]} 39. Rxd2 {[%clk 0:00:14.7]} 39... Ne3+ {[%clk
0:00:35.9]} 40. Kf2 {[%clk 0:00:14.4]} 40... Ke7 {[%clk 0:00:34.1]} 41. Kxe3
{[%clk 0:00:14.3]} 41... Bb6+ {[%clk 0:00:35]} 42. Ke2 {[%clk 0:00:14.9]} 42...
Be6 {[%clk 0:00:35.2]} 43. a3 {[%clk 0:00:14.1]} 43... Bc4+ {[%clk 0:00:35.1]}
44. Ke1 {[%clk 0:00:10.8]} 44... Be3 {[%clk 0:00:35.3]} 45. Rc2 {[%clk
0:00:08.2]} 45... Kf6 {[%clk 0:00:34.2]} 46. Rg2 {[%clk 0:00:06.4]} 46... Bc1
{[%clk 0:00:33.7]} 47. Kd1 {[%clk 0:00:04.7]} 47... Be3 {[%clk 0:00:33.1]} 48.
Kc2 {[%clk 0:00:04.5]} 48... g5 {[%clk 0:00:29.4]} 49. hxg5+ {[%clk 0:00:05.4]}
49... Kxg5 {[%clk 0:00:30.2]} 50. Rh2 {[%clk 0:00:06]} 50... Bg1 {[%clk
0:00:27.9]} 51. Rg2 {[%clk 0:00:06]} 51... Be3 {[%clk 0:00:28.2]} 52. Rh2 {[%clk
0:00:06.7]} 52... Kg6 {[%clk 0:00:27.9]} 53. Rg2 {[%clk 0:00:06.7]} 53... Bg5
{[%clk 0:00:27.4]} 54. Rh2 {[%clk 0:00:06.9]} 54... Be7 {[%clk 0:00:27.2]} 55.
Rg2 {[%clk 0:00:06.4]} 55... Bd8 {[%clk 0:00:26.7]} 56. Rh2 {[%clk 0:00:07]}
56... Bb6 {[%clk 0:00:26.7]} 57. Rg2 {[%clk 0:00:07.3]} 57... Be3 {[%clk
0:00:26.8]} 58. Rh2 {[%clk 0:00:07.6]} 58... Bf1 {[%clk 0:00:26.6]} 59. Kb3
{[%clk 0:00:05.9]} 59... Kg5 {[%clk 0:00:25.1]} 60. a4 {[%clk 0:00:05.8]} 60...
Bc4+ {[%clk 0:00:24.8]} 61. Ka3 {[%clk 0:00:05.7]} 61... Bc1+ {[%clk 0:00:25]}
0-1

[Event "*** SCC Grand Prix: Titled Tuesday Blitz"]
[Site "Chess.com"]
[Date "2020.06.02"]
[Round "5"]
[White "TigrVShlyape"]
[Black "PavelShkapenko"]
[Result "1/2-1/2"]
[WhiteElo "2876"]
[BlackElo "2647"]
[TimeControl "180+1"]
[EndTime "10:59:23 PDT"]
[Termination "Game drawn by repetition"]

1. d4 {[%clk 0:03:00.9]} 1... Nf6 {[%clk 0:02:59.4]} 2. Nf3 {[%clk 0:03:00.2]}
2... e6 {[%clk 0:02:59.9]} 3. Bf4 {[%clk 0:02:55.2]} 3... c5 {[%clk 0:02:59.9]}
4. e3 {[%clk 0:02:54.8]} 4... b6 {[%clk 0:02:59.8]} 5. Nbd2 {[%clk 0:02:53.1]}
5... Bb7 {[%clk 0:02:59.1]} 6. h3 {[%clk 0:02:52.1]} 6... cxd4 {[%clk
0:02:57.7]} 7. exd4 {[%clk 0:02:51.5]} 7... a6 {[%clk 0:02:57.2]} 8. a4 {[%clk
0:02:50.7]} 8... d6 {[%clk 0:02:56.9]} 9. Bd3 {[%clk 0:02:50]} 9... Be7 {[%clk
0:02:57]} 10. O-O {[%clk 0:02:49.3]} 10... O-O {[%clk 0:02:56.8]} 11. Re1 {[%clk
0:02:46]} 11... Nbd7 {[%clk 0:02:56.5]} 12. a5 {[%clk 0:02:44.2]} 12... b5
{[%clk 0:02:54.7]} 13. c4 {[%clk 0:02:44]} 13... bxc4 {[%clk 0:02:54]} 14. Nxc4
{[%clk 0:02:43.6]} 14... d5 {[%clk 0:02:19.9]} 15. Nce5 {[%clk 0:02:22]} 15...
Nxe5 {[%clk 0:02:15.7]} 16. Nxe5 {[%clk 0:02:20.8]} 16... Nd7 {[%clk 0:02:04]}
17. Qb3 {[%clk 0:02:14.3]} 17... Nxe5 {[%clk 0:02:02]} 18. Bxe5 {[%clk
0:02:13.6]} 18... Qd7 {[%clk 0:01:55.1]} 19. Rec1 {[%clk 0:02:02.7]} 19... Rfc8
{[%clk 0:01:54.3]} 20. Qd1 {[%clk 0:01:33.4]} 20... Rxc1 {[%clk 0:01:33.5]} 21.
Rxc1 {[%clk 0:01:32]} 21... Rc8 {[%clk 0:01:34.1]} 22. Rxc8+ {[%clk 0:01:20.9]}
22... Qxc8 {[%clk 0:01:34.1]} 23. Qb1 {[%clk 0:01:21]} 23... h6 {[%clk
0:01:13.4]} 24. b4 {[%clk 0:01:20.7]} 24... Qc3 {[%clk 0:01:13.2]} 25. b5 {[%clk
0:01:18.9]} 25... Qxa5 {[%clk 0:00:52.6]} 26. bxa6 {[%clk 0:00:53]} 26... Bxa6
{[%clk 0:00:52.6]} 27. Qb8+ {[%clk 0:00:47.2]} 27... Bf8 {[%clk 0:00:52.6]} 28.
Bd6 {[%clk 0:00:36.7]} 28... Bxd3 {[%clk 0:00:49.1]} 29. Qxf8+ {[%clk
0:00:36.5]} 29... Kh7 {[%clk 0:00:49.5]} 30. Qxf7 {[%clk 0:00:36.3]} 30... Qe1+
{[%clk 0:00:43.6]} 31. Kh2 {[%clk 0:00:36.1]} 31... Bg6 {[%clk 0:00:44]} 32. Qf8
{[%clk 0:00:29.4]} 32... Qa5 {[%clk 0:00:34.9]} 33. Qe7 {[%clk 0:00:25]} 33...
Qa8 {[%clk 0:00:25.8]} 34. Qxe6 {[%clk 0:00:23.4]} 34... Qg8 {[%clk 0:00:25.6]}
35. Qg4 {[%clk 0:00:19]} 35... Qf7 {[%clk 0:00:25.3]} 36. Qg3 {[%clk 0:00:18.7]}
36... Qf5 {[%clk 0:00:24]} 37. Be5 {[%clk 0:00:18.7]} 37... Qg5 {[%clk
0:00:21.4]} 38. Qxg5 {[%clk 0:00:17.4]} 38... hxg5 {[%clk 0:00:21.4]} 39. Kg3
{[%clk 0:00:17.5]} 39... Bd3 {[%clk 0:00:19]} 40. Bd6 {[%clk 0:00:16.7]} 40...
Kg6 {[%clk 0:00:19]} 41. f3 {[%clk 0:00:15.9]} 41... Bc4 {[%clk 0:00:18.6]} 42.
Be7 {[%clk 0:00:15.4]} 42... Bb5 {[%clk 0:00:18.5]} 43. Kf2 {[%clk 0:00:14.7]}
43... Ba6 {[%clk 0:00:18.2]} 44. g4 {[%clk 0:00:13.6]} 44... Bb5 {[%clk
0:00:17.8]} 45. Kg3 {[%clk 0:00:14]} 45... Ba4 {[%clk 0:00:18.2]} 46. f4 {[%clk
0:00:13.7]} 46... gxf4+ {[%clk 0:00:18.4]} 47. Kxf4 {[%clk 0:00:14.2]} 47... Bb3
{[%clk 0:00:18.6]} 48. h4 {[%clk 0:00:14.2]} 48... Bc2 {[%clk 0:00:18.3]} 49.
h5+ {[%clk 0:00:12.1]} 49... Kf7 {[%clk 0:00:17.9]} 50. Bd6 {[%clk 0:00:12.3]}
50... Bd1 {[%clk 0:00:17.9]} 51. Be5 {[%clk 0:00:12.3]} 51... Be2 {[%clk
0:00:18]} 52. Kg5 {[%clk 0:00:12.7]} 52... Bd1 {[%clk 0:00:17.3]} 53. Kh4 {[%clk
0:00:13.1]} 53... Be2 {[%clk 0:00:16.7]} 54. g5 {[%clk 0:00:13.6]} 54... g6
{[%clk 0:00:16.7]} 55. h6 {[%clk 0:00:13.5]} 55... Kg8 {[%clk 0:00:17.2]} 56.
Kg3 {[%clk 0:00:14.4]} 56... Kh7 {[%clk 0:00:17.3]} 57. Kf4 {[%clk 0:00:15.3]}
57... Bd3 {[%clk 0:00:17.5]} 58. Bf6 {[%clk 0:00:16.2]} 58... Be4 {[%clk
0:00:17.6]} 59. Ke5 {[%clk 0:00:16.7]} 59... Bg2 {[%clk 0:00:17.6]} 60. Ke6
{[%clk 0:00:17]} 60... Be4 {[%clk 0:00:18]} 61. Kf7 {[%clk 0:00:17.4]} 61... Bg2
{[%clk 0:00:17.9]} 62. Bg7 {[%clk 0:00:17.8]} 62... Be4 {[%clk 0:00:17.9]} 63.
Kf6 {[%clk 0:00:18]} 63... Bg2 {[%clk 0:00:17.9]} 64. Kf7 {[%clk 0:00:18.2]}
64... Be4 {[%clk 0:00:18]} 65. Kf6 {[%clk 0:00:18.4]} 65... Bg2 {[%clk
0:00:18.1]} 66. Kf7 {[%clk 0:00:18.7]} 1/2-1/2

[Event "*** SCC Grand Prix: Titled Tuesday Blitz"]
[Site "Chess.com"]
[Date "2020.06.02"]
[Round "5"]
[White "Artem_Koval"]
[Black "RianKapriaga"]
[Result "1-0"]
[WhiteElo "2394"]
[BlackElo "2186"]
[TimeControl "180+1"]
[EndTime "10:59:23 PDT"]
[Termination "Artem_Koval won on time"]

1. e4 {[%clk 0:03:00.9]} 1... e5 {[%clk 0:02:58.7]} 2. d4 {[%clk 0:03:00.3]}
2... exd4 {[%clk 0:02:56.6]} 3. Bc4 {[%clk 0:03:00.5]} 3... Nc6 {[%clk
0:02:51.4]} 4. Nf3 {[%clk 0:03:00.6]} 4... Bc5 {[%clk 0:02:49.4]} 5. O-O {[%clk
0:03:00.5]} 5... d6 {[%clk 0:02:47.7]} 6. c3 {[%clk 0:03:00.5]} 6... dxc3 {[%clk
0:02:46.2]} 7. Nxc3 {[%clk 0:03:01.4]} 7... Nge7 {[%clk 0:02:41.2]} 8. Na4
{[%clk 0:01:59.5]} 8... Bb6 {[%clk 0:02:27.8]} 9. Nxb6 {[%clk 0:01:58.4]} 9...
axb6 {[%clk 0:02:28.7]} 10. Bb3 {[%clk 0:01:12.4]} 10... O-O {[%clk 0:02:23.6]}
11. Bg5 {[%clk 0:01:10.7]} 11... Be6 {[%clk 0:02:16.3]} 12. Bc2 {[%clk
0:00:59.9]} 12... h6 {[%clk 0:02:13]} 13. Bh4 {[%clk 0:00:59.6]} 13... Qd7
{[%clk 0:02:04.7]} 14. a3 {[%clk 0:00:51.7]} 14... Ng6 {[%clk 0:02:00.5]} 15.
Bg3 {[%clk 0:00:52]} 15... Bg4 {[%clk 0:01:58.8]} 16. Qd3 {[%clk 0:00:49.7]}
16... Bxf3 {[%clk 0:01:50.8]} 17. Qxf3 {[%clk 0:00:50.6]} 17... Nd4 {[%clk
0:01:49.2]} 18. Qd3 {[%clk 0:00:47.9]} 18... Nxc2 {[%clk 0:01:47.6]} 19. Qxc2
{[%clk 0:00:48.8]} 19... Rfe8 {[%clk 0:01:42.7]} 20. h3 {[%clk 0:00:48]} 20...
Re7 {[%clk 0:01:40.5]} 21. f3 {[%clk 0:00:44.1]} 21... Qc6 {[%clk 0:01:38.7]}
22. Qe2 {[%clk 0:00:42.2]} 22... Qc5+ {[%clk 0:01:34.9]} 23. Kh2 {[%clk
0:00:40.3]} 23... Rae8 {[%clk 0:01:30.3]} 24. Rac1 {[%clk 0:00:40.1]} 24... Qh5
{[%clk 0:01:27.3]} 25. Qd2 {[%clk 0:00:36.7]} 25... Qg5 {[%clk 0:01:18.2]} 26.
Qf2 {[%clk 0:00:20.6]} 26... Nf4 {[%clk 0:01:09.4]} 27. Bh4 {[%clk 0:00:20.4]}
27... Qe5 {[%clk 0:01:07.2]} 28. Bg3 {[%clk 0:00:10]} 28... Qf6 {[%clk
0:01:01.9]} 29. Rc3 {[%clk 0:00:07.1]} 29... g5 {[%clk 0:00:55.2]} 30. Rfc1
{[%clk 0:00:06.4]} 30... c6 {[%clk 0:00:48]} 31. Qd2 {[%clk 0:00:06.5]} 31...
Re6 {[%clk 0:00:36.4]} 32. Bxf4 {[%clk 0:00:06.2]} 32... gxf4 {[%clk 0:00:35.8]}
33. Qf2 {[%clk 0:00:05.9]} 33... Kh7 {[%clk 0:00:32]} 34. Qxb6 {[%clk
0:00:05.9]} 34... Rg8 {[%clk 0:00:30.6]} 35. Qxb7 {[%clk 0:00:05.2]} 35... Rg7
{[%clk 0:00:21.8]} 36. Qxc6 {[%clk 0:00:04.5]} 36... Qh4 {[%clk 0:00:20.4]} 37.
R3c2 {[%clk 0:00:03.9]} 37... Qg3+ {[%clk 0:00:17.7]} 38. Kh1 {[%clk 0:00:02.8]}
38... Reg6 {[%clk 0:00:14.8]} 39. Qc3 {[%clk 0:00:03]} 39... Qh4 {[%clk
0:00:13]} 40. Qe1 {[%clk 0:00:02.2]} 40... Rg3 {[%clk 0:00:13.4]} 41. Qg1 {[%clk
0:00:01.4]} 41... Rxh3+ {[%clk 0:00:10.9]} 42. gxh3 {[%clk 0:00:01.3]} 42...
Rxg1+ {[%clk 0:00:10.8]} 43. Rxg1 {[%clk 0:00:02.2]} 43... Qxh3+ {[%clk
0:00:09.4]} 44. Rh2 {[%clk 0:00:03.1]} 44... Qxf3+ {[%clk 0:00:09.6]} 45. Rhg2
{[%clk 0:00:03.4]} 45... Qxe4 {[%clk 0:00:07.9]} 46. Kh2 {[%clk 0:00:02.5]}
46... h5 {[%clk 0:00:03.3]} 47. Rg7+ {[%clk 0:00:02.4]} 47... Kh6 {[%clk
0:00:03.7]} 48. Rxf7 {[%clk 0:00:02.7]} 48... Qc2+ {[%clk 0:00:01.4]} 49. Rg2
{[%clk 0:00:02.7]} 1-0

[Event "*** SCC Grand Prix: Titled Tuesday Blitz"]
[Site "Chess.com"]
[Date "2020.06.02"]
[Round "5"]
[White "Panterov"]
[Black "Cocaino74"]
[Result "1-0"]
[WhiteElo "2129"]
[BlackElo "2303"]
[TimeControl "180+1"]
[EndTime "10:59:23 PDT"]
[Termination "Panterov won on time"]

1. e4 {[%clk 0:03:00.9]} 1... c5 {[%clk 0:02:58.4]} 2. b3 {[%clk 0:02:59.6]}
2... g6 {[%clk 0:02:56.8]} 3. Bb2 {[%clk 0:02:59.4]} 3... Nf6 {[%clk 0:02:57.1]}
4. e5 {[%clk 0:02:59.5]} 4... Nd5 {[%clk 0:02:55.9]} 5. c4 {[%clk 0:03:00]} 5...
Nc7 {[%clk 0:02:52.3]} 6. e6 {[%clk 0:03:00.3]} 6... f6 {[%clk 0:02:50.9]} 7.
exd7+ {[%clk 0:03:00.5]} 7... Qxd7 {[%clk 0:02:45.8]} 8. Nf3 {[%clk 0:02:59]}
8... e5 {[%clk 0:02:43.2]} 9. Nc3 {[%clk 0:02:59.2]} 9... Nc6 {[%clk 0:02:40.4]}
10. Be2 {[%clk 0:02:59.4]} 10... Bg7 {[%clk 0:02:32.6]} 11. O-O {[%clk
0:02:59.4]} 11... b6 {[%clk 0:02:31.8]} 12. d3 {[%clk 0:02:59.8]} 12... Bb7
{[%clk 0:02:29.6]} 13. Nd2 {[%clk 0:02:59.3]} 13... Nd4 {[%clk 0:02:24.8]} 14.
Nce4 {[%clk 0:02:51.2]} 14... O-O-O {[%clk 0:02:17.1]} 15. Bxd4 {[%clk
0:02:46.6]} 15... Qxd4 {[%clk 0:02:07.9]} 16. b4 {[%clk 0:02:35.8]} 16... cxb4
{[%clk 0:01:57.1]} 17. Qa4 {[%clk 0:02:33.1]} 17... f5 {[%clk 0:01:42]} 18. Ng3
{[%clk 0:02:10.2]} 18... Qc3 {[%clk 0:01:38.4]} 19. Qxa7 {[%clk 0:01:56.7]}
19... Qxd2 {[%clk 0:01:35.6]} 20. Qxb6 {[%clk 0:01:56.8]} 20... e4 {[%clk
0:01:31.9]} 21. Rad1 {[%clk 0:01:53.8]} 21... Qxa2 {[%clk 0:01:19.3]} 22. dxe4
{[%clk 0:01:37.5]} 22... f4 {[%clk 0:01:17.5]} 23. Bg4+ {[%clk 0:01:37.2]} 23...
Kb8 {[%clk 0:01:16.7]} 24. Ne2 {[%clk 0:01:24.8]} 24... b3 {[%clk 0:00:57.6]}
25. e5 {[%clk 0:01:20.8]} 25... Bxe5 {[%clk 0:00:49.5]} 26. Bf3 {[%clk 0:01:18]}
26... Qa6 {[%clk 0:00:32.9]} 27. Qxb3 {[%clk 0:01:17.8]} 27... Ka8 {[%clk
0:00:25.3]} 28. Nc3 {[%clk 0:01:12.3]} 28... Bxf3 {[%clk 0:00:23.4]} 29. Ra1
{[%clk 0:01:10.7]} 29... Bb7 {[%clk 0:00:18]} 30. Rxa6+ {[%clk 0:01:06.4]} 30...
Nxa6 {[%clk 0:00:18.9]} 31. Rb1 {[%clk 0:01:01.4]} 31... Rd7 {[%clk 0:00:13.1]}
32. Na4 {[%clk 0:00:54.1]} 32... Bd4 {[%clk 0:00:11.9]} 33. c5 {[%clk
0:00:49.3]} 33... Bxc5 {[%clk 0:00:05.5]} 34. Nxc5 {[%clk 0:00:35.2]} 34... Nxc5
{[%clk 0:00:06.4]} 35. Qb5 {[%clk 0:00:35.4]} 35... Rc8 {[%clk 0:00:04.4]} 36.
h4 {[%clk 0:00:31.9]} 36... Rd5 {[%clk 0:00:02.6]} 37. Rc1 {[%clk 0:00:28.2]}
37... Kb8 {[%clk 0:00:01.7]} 38. Qb6 {[%clk 0:00:24.9]} 38... Nd7 {[%clk
0:00:01.7]} 39. Rxc8+ {[%clk 0:00:22.9]} 39... Kxc8 {[%clk 0:00:02.6]} 40. Qe6
{[%clk 0:00:21.2]} 40... Rd1+ {[%clk 0:00:02.8]} 41. Kh2 {[%clk 0:00:20.8]}
41... f3 {[%clk 0:00:03.4]} 42. Qc4+ {[%clk 0:00:10.7]} 42... Kb8 {[%clk
0:00:03.2]} 43. gxf3 {[%clk 0:00:08.7]} 43... Rd5 {[%clk 0:00:02.4]} 44. Qf4+
{[%clk 0:00:05.4]} 44... Kc8 {[%clk 0:00:01.9]} 45. Qf7 {[%clk 0:00:04.9]} 45...
Rf5 {[%clk 0:00:02.3]} 46. Qg8+ {[%clk 0:00:05.1]} 46... Kc7 {[%clk 0:00:02.2]}
47. f4 {[%clk 0:00:05.7]} 47... Kd6 {[%clk 0:00:01.3]} 48. Qxh7 {[%clk
0:00:05.1]} 48... Nf6 {[%clk 0:00:01.5]} 49. Qxg6 {[%clk 0:00:05.1]} 49... Ke6
{[%clk 0:00:01.2]} 50. Kg3 {[%clk 0:00:04.5]} 1-0